Workbook

Sheet ONDERWIJSPERIODE
B1: MIJN LESROOSTER
B2: HERFSTPERIODE
C3: BEGINTIJD | D3: TIJDSINTERVAL | F3: JAAR
C4: 09:00:00 | D4: 60 | E4: (in minuten)
B5: TIJD | C5: MA | D5: DI | E5: WO | F5: DO | G5: VR | H5: ZA | I5: ZO
B6: =Begintijd+TIME(0,(ROW(A1)-1)*Tijdsinterval,0) -> 09:00:00 | C6: Ontbijt | D6: Ontbijt | E6: Ontbijt | F6: Ontbijt | G6: Ontbijt
B7: 10:00:00 | C7: Handel: College gebouw B, lokaal 256
B8: 11:00:00 | F8: Natuurkunde: Laboratorium Gebouw J, lokaal 309
B9: 12:00:00
B10: 13:00:00
B11: 14:00:00
B12: 15:00:00
B13: 16:00:00
B14: 17:00:00
B15: 18:00:00
B16: 19:00:00
B17: 20:00:00
B18: 21:00:00
B19: 22:00:00
B20: 23:00:00
B21: 1
B22: 1.041666667
B23: 1.083333333
B24: 1.125
B25: 1.166666667
B26: 1.208333333
B27: 1.25
B28: 1.291666667
B29: 1.333333333

Sheet STUDIEPUNTEN
B1: UNIVERSITEIT
B2: STUDIEPUNTENPLANNER
B3: Graad | C3: =Jaar -> JAAR
B4: ALGEHELE VOORTGANG | D4: ALGEHELE VOORTGANG
B5: =AVERAGE(Cursussen[CIJFER]) -> 3.5 | C5: =IFERROR(TEXT(AVERAGEIF(Cursussen[VOLTOOID],"Ja",Cursussen[CIJFER]),"0,00"),"0,00")&" Huidig cijfergemiddelde" -> 3,50 Huidig cijfergemiddelde | D5: =COUNTIF(Cursussen[VOLTOOID],"Ja")/COUNTA(Cursussen[CURSUSTITEL]) -> 0.6666666667 | E5: =TEXT(COUNTIF(Cursussen[VOLTOOID],"Ja")/COUNTA(Cursussen[CURSUSTITEL]),"0%")&" Voltooid" -> 67% Voltooid
B6: Opmerking: Het volgende puntenoverzicht wordt automatisch gevuld met de waarden in de onderstaande tabel voor Academische cursussen
B7: VEREISTE | C7: TOTAAL AANTAL STUDIEPUNTEN | D7: BEHAALD | E7: NODIG
B8: Hoofdvak | C8: =IF(SUMIF(Cursussen[VEREISTE],STUDIEPUNTEN!$B8,Cursussen[STUDIEPUNTEN])=0,"0",SUMIF(Cursussen[VEREISTE],STUDIEPUNTEN!$B8,Cursussen[STUDIEPUNTEN])) -> 4 | D8: =SUMIFS(Cursussen[STUDIEPUNTEN],Cursussen[VEREISTE],STUDIEPUNTEN!$B8,Cursussen[VOLTOOID],"Ja") -> 4 | E8: =SUMIF(Cursussen[VEREISTE],STUDIEPUNTEN!$B8,Cursussen[STUDIEPUNTEN])-SUMIFS(Cursussen[STUDIEPUNTEN],Cursussen[VEREISTE],STUDIEPUNTEN!$B8,Cursussen[VOLTOOID],"Ja") -> 0
B9: Bijvak | C9: =IF(SUMIF(Cursussen[VEREISTE],STUDIEPUNTEN!$B9,Cursussen[STUDIEPUNTEN])=0,"0",SUMIF(Cursussen[VEREISTE],STUDIEPUNTEN!$B9,Cursussen[STUDIEPUNTEN])) -> 3 | D9: =SUMIFS(Cursussen[STUDIEPUNTEN],Cursussen[VEREISTE],STUDIEPUNTEN!$B9,Cursussen[VOLTOOID],"Ja") -> 0 | E9: =SUMIF(Cursussen[VEREISTE],STUDIEPUNTEN!$B9,Cursussen[STUDIEPUNTEN])-SUMIFS(Cursussen[STUDIEPUNTEN],Cursussen[VEREISTE],STUDIEPUNTEN!$B9,Cursussen[VOLTOOID],"Ja") -> 3
B10: Optionele cursus | C10: =IF(SUMIF(Cursussen[VEREISTE],STUDIEPUNTEN!$B10,Cursussen[STUDIEPUNTEN])=0,"0",SUMIF(Cursussen[VEREISTE],STUDIEPUNTEN!$B10,Cursussen[STUDIEPUNTEN])) -> 2 | D10: =SUMIFS(Cursussen[STUDIEPUNTEN],Cursussen[VEREISTE],STUDIEPUNTEN!$B10,Cursussen[VOLTOOID],"Ja") -> 2 | E10: =SUMIF(Cursussen[VEREISTE],STUDIEPUNTEN!$B10,Cursussen[STUDIEPUNTEN])-SUMIFS(Cursussen[STUDIEPUNTEN],Cursussen[VEREISTE],STUDIEPUNTEN!$B10,Cursussen[VOLTOOID],"Ja") -> 0
B11: Algemene studie | C11: =IF(SUMIF(Cursussen[VEREISTE],STUDIEPUNTEN!$B11,Cursussen[STUDIEPUNTEN])=0,"0",SUMIF(Cursussen[VEREISTE],STUDIEPUNTEN!$B11,Cursussen[STUDIEPUNTEN])) -> 0 | D11: =SUMIFS(Cursussen[STUDIEPUNTEN],Cursussen[VEREISTE],STUDIEPUNTEN!$B11,Cursussen[VOLTOOID],"Ja") -> 0 | E11: =SUMIF(Cursussen[VEREISTE],STUDIEPUNTEN!$B11,Cursussen[STUDIEPUNTEN])-SUMIFS(Cursussen[STUDIEPUNTEN],Cursussen[VEREISTE],STUDIEPUNTEN!$B11,Cursussen[VOLTOOID],"Ja") -> 0
B12: Totaal | C12: =SUBTOTAL(109,STUDIEPUNTEN!$C$8:$C$11) -> 9 | D12: =SUBTOTAL(109,STUDIEPUNTEN!$D$8:$D$11) -> 6 | E12: =SUBTOTAL(109,STUDIEPUNTEN!$E$8:$E$11) -> 3
B13: Cursussen
B14: CURSUSTITEL | C14: CURSUSNUMMER | D14: VEREISTE | E14: STUDIEPUNTEN | F14: VOLTOOID | G14: CIJFER | H14: ONDERWIJSPERIODE
B15: Cursus 1 | C15: Nummer | D15: Hoofdvak | E15: 4 | F15: Ja | G15: 4.0 | H15: Periode 1
B16: Cursus 2 | C16: Nummer | D16: Bijvak | E16: 3 | F16: Nee | H16: Periode 1
B17: Cursus 3 | C17: Nummer | D17: Optionele cursus | E17: 2 | F17: Ja | G17: 3.0 | H17: Periode 1

Sheet BUDGET
B1: =Universiteit -> UNIVERSITEIT
B2: BUDGETTRACKER
B3: Mijn budget | C3: =Jaar -> JAAR
B4: PERCENTAGE VAN INKOMEN UITGEGEVEN
B5: =NETTO_MAANDELIJKSE_UITGAVEN/NETTO_MAANDELIJKSE_INKOMSTEN -> € 1
B6: =B5 -> 0.7454545455
B7: NETTOMAANDINKOMEN | C7: NETTO MAANDELIJKSE UITGAVEN | D7: SALDO
B8: =C10 -> € 2,750 | C8: ='NETTO MAANDELIJKSE UITGAVEN'!C4+'UITGAVEN ONDERWIJSPERIODE'!D4 -> € 2,050 | D8: =NETTO_MAANDELIJKSE_INKOMSTEN-NETTO_MAANDELIJKSE_UITGAVEN -> € 700
B9: Maanden in onderwijsperiode | C9: 4
B10: MAANDELIJKSE INKOMSTEN | C10: =SUM(MaandelijkseInkomsten[BEDRAG]) -> € 2,750
B11: ITEM | C11: BEDRAG
B12: Vast inkomen | C12: € 1,500
B13: Financiële hulp | C13: € 500
B14: Leningen | C14: € 500
B15: Overige inkomsten | C15: € 250

Sheet NETTO MAANDELIJKSE UITGAVEN
B1: =Universiteit -> UNIVERSITEIT
B2: BUDGETTRACKER
B3: Maandelijkse uitgaven | C3: =Jaar -> JAAR
B4: MAANDELIJKSE UITGAVEN | C4: =SUM(MaandelijkseUitgaven[BEDRAG]) -> € 1,675
B5: ITEM | C5: BEDRAG
B6: Huur | C6: € 300
B7: Water, gas, elektriciteit | C7: € 50
B8: Mobiele telefoon | C8: € 75
B9: Boodschappen | C9: € 250
B10: Uitgaven auto | C10: € 50
B11: Studieleningen | C11: € 500
B12: Creditcards | C12: € 275
B13: Verzekering | C13: € 125
B14: Amusement | C14: € 50
B15: Diversen | C15: € 0

Sheet UITGAVEN ONDERWIJSPERIODE
B1: =Universiteit -> UNIVERSITEIT
B2: BUDGETTRACKER
B3: Uitgaven onderwijsperiode | C3: =Jaar -> JAAR
B4: UITGAVEN ONDERWIJSPERIODE (totaal/per maand) | C4: =SUM(UitgavenOnderwijsperiode[BEDRAG]) -> € 1,500 | D4: =SUM(UitgavenOnderwijsperiode[PER MAAND]) -> € 375
B5: ITEM | C5: BEDRAG | D5: PER MAAND
B6: Collegegeld | C6: € 750 | D6: =UitgavenOnderwijsperiode[[#This Row],[BEDRAG]]/Maanden_in_periode -> € 188
B7: Laboratoriumkosten | C7: € 250 | D7: =UitgavenOnderwijsperiode[[#This Row],[BEDRAG]]/Maanden_in_periode -> € 63
B8: Boeken | C8: € 500 | D8: =UitgavenOnderwijsperiode[[#This Row],[BEDRAG]]/Maanden_in_periode -> € 125
B9: Waarborgsommen | C9: € 0 | D9: =UitgavenOnderwijsperiode[[#This Row],[BEDRAG]]/Maanden_in_periode -> € 0
B10: Vervoer | C10: € 0 | D10: =UitgavenOnderwijsperiode[[#This Row],[BEDRAG]]/Maanden_in_periode -> € 0
B11: Andere kosten | C11: € 0 | D11: =UitgavenOnderwijsperiode[[#This Row],[BEDRAG]]/Maanden_in_periode -> € 0

Sheet BOEKEN
B1: =Universiteit -> UNIVERSITEIT
B2: BOEKENTRACKER
B3: Boekenlijst
B4: TITEL | C4: AUTEUR | D4: CURSUS | E4: WAAR KOPEN? | F4: ISBN | G4: OPMERKINGEN
B5: Boektitel | C5: Auteur | D5: Cursus | E5: Locatie | F5: Nummer
B6: Boektitel | C6: Auteur | D6: Cursus | E6: Locatie | F6: Nummer
B7: Boektitel | C7: Auteur | D7: Cursus | E7: Locatie | F7: Nummer
